[Event "TUR-chT Superleague 2018"]
[Site "Ankara"]
[Date "2018.08.01"]
[Round "8"]
[White "Karagollu, Ahmet"]
[Black "Kinsiz, Onur"]
[Result "1-0"]
[ECO "B31"]
[WhiteElo "2127"]
[BlackElo "2204"]
[Annotator "NA"]
[PlyCount "155"]
[EventDate "2018.07.25"]
[EventType "team-tourn"]
[EventCountry "TUR"]
[SourceTitle "playchess.com"]
[Source "ChessBase"]
[SourceQuality "1"]
[TimeControl "40/5400+30:1800+30"]

1. e4 c5 2. Nf3 Nc6 3. Bb5 g6 4. O-O Bg7 5. Re1 Nf6 6. c3 O-O 7. d4 cxd4 8. cxd4 d5 9. e5 Ne4 10. Nbd2 Nxd2 11. Bxd2 Qb6 12. Qa4 Bg4 13. Bxc6 bxc6 14. Ba5 Qb5 15. Qxb5 cxb5 16. Bb4 Bxf3 17. gxf3 Rfe8 18. Rac1 a5 19. Bd2 e6 20. Rc5 Reb8 21. Rec1 Bf8 22. Rc7 a4 23. Kf1 h5 24. Ke2 Kg7 25. Kd3 b4 26. Bg5 Re8 27. R1c6 Kg8 28. h3 Reb8 29. Rc1 Re8 30. Bd2 Reb8 31. Bg5 Re8 32. f4 Kg7 33. f3 Kg8 34. f5 exf5 35. Rd7 Rec8 36. Rxc8 Rxc8 37. Rxd5 a3 38. bxa3 bxa3 39. Rd8 Rxd8 40. Bxd8 {[%emt 1:08:00]} Bg7 {[%emt 1:20:00]} 41. Bc7 {[%emt 0:33:30]} g5 {[%emt 0:40:36]} 42. Bd8 {[%emt 0:02:30]} Bh6 {[%emt 0:05:19]} 43. Be7 {[%emt 0:01:30]} g4 {[%emt 0:01:57]} 44. hxg4 {[%emt 0:00:00]} fxg4 {[%emt 0:00:50]} 45. fxg4 {[%emt 0:00:00]} hxg4 {[%emt 0:00:00]} 46. Ke4 {[%emt 0:00:30]} Bc1 {[%emt 0:09:27]} 47. d5 {[%emt 0:00:30]} g3 {[%emt 0:01:10]} 48. Kf3 {[%emt 0:00:30]} Bb2 {[%emt 0:01:17]} 49. Bf6 {[%emt 0:00:30]} Kf8 {[%emt 0:00:00]} 50. Kxg3 {[%emt 0:00:30]} Ke8 {[%emt 0:00:00]} 51. Kf4 {[%emt 0:00:30]} Kd7 {[%emt 0:01:40]} 52. Kf5 {[%emt 0:00:00]} Bc1 {[%emt 0:00:04]} 53. Bg5 {[%emt 0:01:00]} Bb2 {[%emt 0:00:13]} 54. Be3 {[%emt 0:00:30]} Bc3 {[%emt 0:00:18]} 55. Ke4 {[%emt 0:00:30]} Bb2 {[%emt 0:00:51]} 56. Kf5 {[%emt 0:01:30]} Bc3 {[%emt 0:00:22]} 57. Kf6 {[%emt 0:00:30]} Bb2 {[%emt 0:02:23]} 58. Bc5 {[%emt 0:00:30]} Ke8 {[%emt 0:00:30]} 59. Bd6 {[%emt 0:00:00]} Bc1 {[%emt 0:00:58]} 60. e6 {[%emt 0:00:00]} Bb2+ {[%emt 0:00:45]} 61. Kf5 {[%emt 0:00:30]} Bc1 {[%emt 0:01:14]} 62. Bb4 {[%emt 0:01:30]} fxe6+ {[%emt 0:01:00]} 63. Kxe6 {[%emt 0:00:00]} Bf4 {[%emt 0:00:00]} 64. Bxa3 {[%emt 0:00:00]} Kd8 {[%emt 0:00:11]} 65. Bd6 {[%emt 0:00:30]} Bd2 {[%emt 0:00:08]} 66. Be7+ {[%emt 0:00:30]} Kc8 {[%emt 0:00:43]} 67. d6 {[%emt 0:00:30]} Ba5 {[%emt 0:00:00]} 68. d7+ {[%emt 0:00:30]} Kb7 {[%emt 0:00:24]} 69. Kd5 {[%emt 0:00:30]} Bb6 {[%emt 0:01:07]} 70. a4 {[%emt 0:01:30]} Bc7 {[%emt 0:00:39]} 71. Kc5 {[%emt 0:00:00]} Ba5 {[%emt 0:00:28]} 72. Kb5 {[%emt 0:01:00]} Bb6 {[%emt 0:00:37]} 73. a5 {[%emt 0:00:30]} Bc7 {[%emt 0:00:05]} 74. Bf6 {[%emt 0:00:30]} Ka8 {[%emt 0:00:54]} 75. a6 {[%emt 0:01:30]} Ka7 {[%emt 0:01:08]} 76. Bd4+ {[%emt 0:00:00]} Ka8 {[%emt 0:00:21]} 77. Bb6 {[%emt 0:00:00]} Bb8 {[%emt 0:00:44]} 78. a7 {[%emt 0:00:00]} 1-0

[Event "TUR-chT Superleague 2018"]
[Site "Ankara"]
[Date "2018.08.01"]
[Round "8"]
[White "Bozbey, Ali"]
[Black "Tasdogen, Dincer"]
[Result "0-1"]
[ECO "B31"]
[WhiteElo "2126"]
[BlackElo "2280"]
[Annotator "NA"]
[PlyCount "118"]
[EventDate "2018.07.25"]
[EventType "team-tourn"]
[EventCountry "TUR"]
[SourceTitle "playchess.com"]
[Source "ChessBase"]
[SourceQuality "1"]
[TimeControl "40/5400+30:1800+30"]

1. e4 c5 2. Na3 g6 3. c3 Bg7 4. Nf3 Nf6 5. e5 Nd5 6. Bc4 Nb6 7. O-O O-O 8. d4 cxd4 9. cxd4 d6 10. Bf4 dxe5 11. Bxe5 Nxc4 12. Nxc4 Be6 13. Bxg7 Kxg7 14. Ne3 Bd5 15. Ne5 Qd6 16. Qg4 Be6 17. Qe4 Nc6 18. Nxc6 bxc6 19. Rac1 Rfc8 20. b3 a5 21. Nc4 Qb4 22. Qe5+ Kg8 23. Qc5 Rd8 24. Qxc6 Rac8 25. Qb6 Bxc4 26. Qxb4 axb4 27. Rxc4 Rxc4 28. bxc4 Rxd4 29. Rc1 Rd2 30. c5 Rxa2 31. c6 Ra8 32. c7 Rc8 33. Kf1 b3 34. Rb1 Rxc7 35. Rxb3 Kg7 36. Ke2 Rc2+ 37. Ke3 Rc6 38. g3 e5 39. h4 Kf6 40. Ra3 Kf5 41. Ra7 Ke6 42. Ra3 h5 43. Rb3 Kf5 44. f3 {[%emt 1:44:00]} Rc2 {[%emt 1:44:00]} 45. Rb4 {[%emt 0:00:30]} Rg2 {[%emt 0:00:30]} 46. Re4 {[%emt 0:00:30]} Rxg3 {[%emt 0:01:30]} 47. Kf2 {[%emt 0:00:30]} Rg4 {[%emt 0:00:30]} 48. Re3 {[%emt 0:02:30]} Rxh4 {[%emt 0:00:00]} 49. Kg3 {[%emt 0:00:30]} Ra4 {[%emt 0:00:00]} 50. Rb3 {[%emt 0:00:00]} f6 {[%emt 0:00:00]} 51. Rc3 {[%emt 0:00:00]} g5 {[%emt 0:00:00]} 52. Rb3 {[%emt 0:00:00]} h4+ {[%emt 0:00:30]} 53. Kh3 {[%emt 0:00:00]} e4 {[%emt 0:00:30]} 54. fxe4+ {[%emt 0:00:30]} Rxe4 {[%emt 0:00:00]} 55. Rb5+ {[%emt 0:00:30]} Kf4 {[%emt 0:00:00]} 56. Rb2 {[%emt 0:00:00]} Re3+ {[%emt 0:00:30]} 57. Kg2 {[%emt 0:00:00]} f5 {[%emt 0:00:30]} 58. Rb4+ {[%emt 0:00:00]} Re4 {[%emt 0:00:00]} 59. Rb3 {[%emt 0:00:00]} Ke5 {[%emt 0:00:00]} 0-1

[Event "TUR-chT Superleague 2018"]
[Site "Ankara"]
[Date "2018.08.01"]
[Round "8"]
[White "Korkmaz, Necmettin"]
[Black "Keler, Faruk"]
[Result "0-1"]
[ECO "B23"]
[WhiteElo "2056"]
[BlackElo "2286"]
[Annotator "NA"]
[PlyCount "112"]
[EventDate "2018.07.25"]
[EventType "team-tourn"]
[EventCountry "TUR"]
[SourceTitle "playchess.com"]
[Source "ChessBase"]
[SourceQuality "1"]
[TimeControl "40/5400+30:1800+30"]

1. e4 c5 2. Nc3 d6 3. f4 Nc6 4. Nf3 g6 5. Bc4 Bg7 6. O-O e6 7. d3 Nge7 8. Qe1 Nd4 9. Nxd4 cxd4 10. Ne2 h6 11. b4 O-O 12. Bb3 e5 13. fxe5 dxe5 14. Qh4 Nc6 15. Qg3 Qd6 16. b5 Na5 17. Bd5 Be6 18. a4 Rfc8 19. Bxh6 Bxd5 20. Bxg7 Kxg7 21. exd5 Qxd5 22. Qg5 Rh8 23. Ng3 Qe6 24. Rae1 f6 25. Qd2 b6 26. Ne4 Raf8 27. c3 Nb3 28. Qc2 dxc3 29. Qxc3 Rc8 30. Qb4 Rhf8 31. Nd6 Rcd8 {[%emt 1:44:08]} 32. Ne4 {[%emt 1:43:23]} Rxd3 {[%emt 0:00:30]} 33. Ng5 {[%emt 0:01:19]} Qd6 {[%emt 0:00:30]} 34. Qc4 {[%emt 0:00:30]} Qd4+ {[%emt 0:00:30]} 35. Qxd4 {[%emt 0:00:30]} Nxd4 {[%emt 0:00:30]} 36. Ne4 {[%emt 0:01:32]} Ra3 {[%emt 0:00:27]} 37. Ra1 {[%emt 0:00:32]} Rxa1 {[%emt 0:00:35]} 38. Rxa1 {[%emt 0:00:01]} Rc8 {[%emt 0:00:02]} 39. Nd6 {[%emt 0:00:36]} Rc2 {[%emt 0:00:32]} 40. a5 {[%emt 0:00:00]} Rb2 {[%emt 0:00:00]} 41. axb6 {[%emt 0:01:07]} axb6 {[%emt 0:01:46]} 42. Ra7+ {[%emt 0:00:30]} Kh6 {[%emt 0:01:30]} 43. Rb7 {[%emt 0:04:30]} Nxb5 {[%emt 0:09:30]} 44. Rxb6 {[%emt 0:00:30]} Rb1+ {[%emt 0:00:30]} 45. Kf2 {[%emt 0:00:30]} Nc3 {[%emt 0:00:30]} 46. Ra6 {[%emt 0:03:30]} Nd5 {[%emt 0:08:01]} 47. Nf7+ {[%emt 0:11:02]} Kh5 {[%emt 0:02:37]} 48. Rd6 {[%emt 0:00:59]} Rd1 {[%emt 0:00:37]} 49. h3 {[%emt 0:00:54]} e4 {[%emt 0:01:21]} 50. Rd8 {[%emt 0:04:46]} g5 {[%emt 0:00:51]} 51. g4+ {[%emt 0:01:16]} Kg6 {[%emt 0:00:11]} 52. Nd6 {[%emt 0:01:00]} e3+ {[%emt 0:01:25]} 53. Ke2 {[%emt 0:02:03]} Rd2+ {[%emt 0:00:06]} 54. Kf3 {[%emt 0:01:15]} Rf2+ {[%emt 0:02:27]} 55. Kg3 {[%emt 0:00:15]} Nf4 {[%emt 0:01:37]} 56. Re8 {[%emt 0:01:56]} Ne2# {[%emt 0:00:08]} 0-1

[Event "TUR-chT Superleague 2018"]
[Site "Ankara"]
[Date "2018.08.01"]
[Round "8"]
[White "Celik, Eda"]
[Black "Aydin, Gulenay"]
[Result "1-0"]
[ECO "B75"]
[WhiteElo "1976"]
[BlackElo "1894"]
[Annotator "NA"]
[PlyCount "83"]
[EventDate "2018.07.25"]
[EventType "team-tourn"]
[EventCountry "TUR"]
[SourceTitle "playchess.com"]
[Source "ChessBase"]
[SourceQuality "1"]
[TimeControl "40/5400+30:1800+30"]

1. e4 c5 2. Nf3 d6 3. d4 cxd4 4. Nxd4 Nf6 5. Nc3 g6 6. Be3 Bg7 7. f3 a6 8. Qd2 h5 9. Be2 Nbd7 10. O-O O-O 11. a4 Ne5 12. a5 Bd7 13. Na4 Bxa4 14. Rxa4 Rc8 15. c4 Qd7 16. b3 Nc6 17. Nc2 Rfe8 18. Ra2 e6 19. Rd1 Bf8 20. b4 Qe7 21. b5 Ne5 22. Na3 Ned7 23. Nc2 Nc5 24. Nd4 Red8 25. Bg5 Rd7 26. Rb2 Bg7 27. h4 Rdd8 28. bxa6 Nxa6 29. Rb6 Bf8 {[%emt 1:43:12]} 30. Nb5 {[%emt 1:43:30]} Rc6 {[%emt 0:00:30]} 31. e5 {[%emt 0:00:30]} Rxb6 {[%emt 0:00:57]} 32. axb6 {[%emt 0:01:23]} Bg7 {[%emt 0:00:30]} 33. exf6 {[%emt 0:00:30]} Bxf6 {[%emt 0:00:30]} 34. Bxf6 {[%emt 0:00:30]} Qxf6 {[%emt 0:00:30]} 35. Qg5 {[%emt 0:00:30]} Qxg5 {[%emt 0:00:30]} 36. hxg5 {[%emt 0:00:00]} d5 {[%emt 0:00:07]} 37. cxd5 {[%emt 0:00:28]} exd5 {[%emt 0:00:43]} 38. Nc7 {[%emt 0:01:02]} Nxc7 {[%emt 0:00:51]} 39. bxc7 {[%emt 0:00:01]} Rc8 {[%emt 0:00:05]} 40. Rc1 {[%emt 0:00:00]} Kf8 {[%emt 0:00:00]} 41. Bb5 {[%emt 0:06:06]} Ke7 {[%emt 0:01:05]} 42. Kf2 {[%emt 0:01:30]} 1-0

[Event "TUR-chT Superleague 2018"]
[Site "Ankara"]
[Date "2018.08.01"]
[Round "8"]
[White "Sade, Defne"]
[Black "Can, Isil"]
[Result "1-0"]
[ECO "C90"]
[WhiteElo "1968"]
[BlackElo "1862"]
[Annotator "NA"]
[PlyCount "91"]
[EventDate "2018.07.25"]
[EventType "team-tourn"]
[EventCountry "TUR"]
[SourceTitle "playchess.com"]
[Source "ChessBase"]
[SourceQuality "1"]
[TimeControl "40/5400+30:1800+30"]

1. e4 e5 2. Nf3 Nc6 3. Bb5 a6 4. Ba4 Nf6 5. O-O b5 6. Bb3 Be7 7. Re1 d6 8. a4 Bg4 9. c3 O-O 10. d3 Qd7 11. Nbd2 b4 12. Nf1 Rab8 13. Ba2 Bh5 14. Ng3 Bg6 15. Bg5 h6 16. Bd2 bxc3 17. bxc3 Bh7 18. h3 Rb7 19. Nh2 Rfb8 20. Ng4 Nxg4 21. hxg4 Bg6 22. Nf5 Bxf5 23. gxf5 Bf6 24. Qg4 Kh7 25. Re3 Qe7 26. Rh3 Rb2 27. Bc1 Rxa2 28. Rxa2 Rb1 29. Qd1 Bg5 30. Rd2 Na5 31. Qc2 Rxc1+ 32. Qxc1 Nb3 33. Qd1 Nxd2 34. g3 d5 35. f4 Qc5+ 36. Kh1 exf4 37. Qxd2 dxe4 38. dxe4 {[%emt 1:38:46]} Qe5 {[%emt 1:48:13]} 39. Qd4 {[%emt 0:01:44]} Qxd4 {[%emt 0:01:13]} 40. cxd4 {[%emt 0:00:30]} f3 {[%emt 0:00:30]} 41. g4 {[%emt 0:30:30]} Be3 {[%emt 0:00:34]} 42. d5 {[%emt 0:00:00]} f2 {[%emt 0:00:30]} 43. Kg2 {[%emt 0:00:00]} Bb6 {[%emt 0:00:30]} 44. Rc3 {[%emt 0:00:00]} f6 {[%emt 0:01:30]} 45. Rc6 {[%emt 0:00:00]} Bd4 {[%emt 0:01:30]} 46. Rxc7 {[%emt 0:00:00]} 1-0

[Event "TUR-chT Superleague 2018"]
[Site "Ankara"]
[Date "2018.08.01"]
[Round "8"]
[White "Ayan, Bengu Sena"]
[Black "Balajayeva, Khanim"]
[Result "1/2-1/2"]
[ECO "D26"]
[WhiteElo "1894"]
[BlackElo "2332"]
[Annotator "NA"]
[PlyCount "91"]
[EventDate "2018.07.25"]
[EventType "team-tourn"]
[EventCountry "TUR"]
[SourceTitle "playchess.com"]
[Source "ChessBase"]
[SourceQuality "1"]
[TimeControl "40/5400+30:1800+30"]

1. d4 d5 2. c4 dxc4 3. e3 Nf6 4. Bxc4 e6 5. Nf3 a6 6. O-O b5 7. Be2 Bb7 8. Ne5 Nbd7 9. Bf3 Qc8 10. Bc6 Bd6 11. Qf3 Bxc6 12. Nxc6 Qb7 13. Bd2 Nb8 14. Na5 Qxf3 15. gxf3 e5 16. dxe5 Bxe5 17. Bc3 Nbd7 18. Nc6 Bd6 19. e4 Nh5 20. Rd1 Nf4 21. Kf1 f6 22. Nd2 O-O 23. Nb3 Ne5 24. Nbd4 Rfe8 25. Bd2 Nxc6 26. Nxc6 Ng6 27. h3 Nh4 28. Ke2 f5 29. Bg5 Ng6 30. Rd4 f4 31. Rg1 Re6 {[%emt 1:41:50]} 32. h4 {[%emt 1:45:12]} Ne5 {[%emt 0:00:30]} 33. Nxe5 {[%emt 0:00:30]} Bxe5 {[%emt 0:00:30]} 34. Rd7 {[%emt 0:00:00]} Rf8 {[%emt 0:01:36]} 35. Be7 {[%emt 0:00:21]} Re8 {[%emt 0:00:30]} 36. Bb4 {[%emt 0:00:30]} Rc6 {[%emt 0:00:30]} 37. Bc3 {[%emt 0:00:20]} Bxc3 {[%emt 0:00:46]} 38. bxc3 {[%emt 0:00:35]} g6 {[%emt 0:00:30]} 39. h5 {[%emt 0:00:00]} Re5 {[%emt 0:01:14]} 40. hxg6 {[%emt 0:01:12]} hxg6 {[%emt 0:00:00]} 41. Rh1 {[%emt 0:06:50]} Rh5 {[%emt 0:00:34]} 42. Rg1 {[%emt 0:01:30]} Rhc5 {[%emt 0:07:30]} 43. Rh1 {[%emt 0:01:30]} Rh5 {[%emt 0:04:30]} 44. Rg1 {[%emt 0:00:30]} Rhc5 {[%emt 0:06:12]} 45. Rh1 {[%emt 0:00:30]} Rh5 {[%emt 0:01:08]} 46. Rg1 {[%emt 0:00:30]} 1/2-1/2

[Event "TUR-chT Superleague 2018"]
[Site "Ankara"]
[Date "2018.08.01"]
[Round "8"]
[White "Erece, Ece Alkim"]
[Black "Ozbek, Busra"]
[Result "0-1"]
[ECO "E61"]
[WhiteElo "1788"]
[BlackElo "1848"]
[Annotator "NA"]
[PlyCount "82"]
[EventDate "2018.07.25"]
[EventType "team-tourn"]
[EventCountry "TUR"]
[SourceTitle "playchess.com"]
[Source "ChessBase"]
[SourceQuality "1"]
[TimeControl "40/5400+30:1800+30"]

1. d4 d6 2. Nf3 g6 3. e3 Bg7 4. Bd3 Nf6 5. O-O O-O 6. c4 Nbd7 7. Nc3 e5 8. Bc2 c6 9. b3 Re8 10. a4 Qa5 11. Bd2 Qc7 12. d5 a5 13. e4 Nc5 14. Qe2 h6 15. Rad1 Na6 16. Bc1 Nd7 17. Qd2 Bf8 18. Ne2 Ndc5 19. Ng3 Qb6 20. Qe3 Nb4 21. Bb1 Qa6 22. Nh4 cxd5 23. cxd5 b5 24. axb5 Qa7 25. Nf3 Bd7 26. Ba3 Bxb5 27. Rfe1 Rec8 28. Qd2 Nxb3 29. Qb2 Ba4 30. Bxb4 axb4 31. Bc2 Rxc2 32. Qxc2 Nc5 33. Qb2 Bxd1 34. Rxd1 b3 35. Nd2 {[%emt 1:39:33]} Nd3 {[%emt 1:45:31]} 36. Qxb3 {[%emt 0:00:30]} Qxf2+ {[%emt 0:00:30]} 37. Kh1 {[%emt 0:00:30]} Ne1 {[%emt 0:00:30]} 38. Rxe1 {[%emt 0:00:30]} Qxe1+ {[%emt 0:00:30]} 39. Ngf1 {[%emt 0:00:30]} Ra1 {[%emt 0:00:30]} 40. Qd3 {[%emt 0:00:00]} Rd1 {[%emt 0:00:23]} 41. Kg1 {[%emt 0:00:57]} Be7 {[%emt 0:00:36]} 0-1

[Event "TUR-chT Superleague 2018"]
[Site "Ankara"]
[Date "2018.08.01"]
[Round "8"]
[White "Yildirim, Ibrahim Halil"]
[Black "Ozenir, Ekin Baris"]
[Result "0-1"]
[ECO "B00"]
[WhiteElo "1783"]
[BlackElo "2314"]
[Annotator "NA"]
[PlyCount "136"]
[EventDate "2018.07.25"]
[EventType "team-tourn"]
[EventCountry "TUR"]
[SourceTitle "playchess.com"]
[Source "ChessBase"]
[SourceQuality "1"]
[TimeControl "40/5400+30:1800+30"]

1. e4 Nc6 2. Nc3 e6 3. d4 Bb4 4. a3 Bxc3+ 5. bxc3 d6 6. Bd3 Nge7 7. Ne2 O-O 8. O-O e5 9. f4 Bg4 10. d5 Nb8 11. f5 Nd7 12. Qe1 f6 13. Ng3 Qe8 14. Be3 Bh5 15. Nxh5 Qxh5 16. Rf3 Qf7 17. Rh3 Rfc8 18. Qh4 Nf8 19. Rf1 c6 20. c4 a6 21. c5 cxd5 22. cxd6 Nc6 23. exd5 Nb8 24. c4 Nbd7 25. Qf2 e4 26. Be2 Ne5 27. Rc1 b5 28. c5 Qxd5 29. Rd1 Qc6 30. Qf4 Ned7 31. Rc1 {[%emt 1:44:45]} Qd5 {[%emt 1:41:51]} 32. Rd1 {[%emt 0:00:30]} Qc6 {[%emt 0:00:30]} 33. Rc1 {[%emt 0:00:36]} Qd5 {[%emt 0:01:41]} 34. Qf2 {[%emt 0:00:30]} Kh8 {[%emt 0:02:08]} 35. Bf1 {[%emt 0:00:35]} Ne5 {[%emt 0:00:46]} 36. Bf4 {[%emt 0:00:30]} Rc6 {[%emt 0:00:30]} 37. Bxe5 {[%emt 0:00:25]} Qxe5 {[%emt 0:00:07]} 38. Rhc3 {[%emt 0:00:33]} Rac8 {[%emt 0:00:22]} 39. Qa2 {[%emt 0:00:33]} Qxf5 {[%emt 0:00:50]} 40. Qf7 {[%emt 0:00:00]} Qd7 {[%emt 0:00:00]} 41. Qxd7 {[%emt 0:15:12]} Nxd7 {[%emt 0:00:45]} 42. Kf2 {[%emt 0:01:47]} f5 {[%emt 0:08:30]} 43. Ke3 {[%emt 0:04:15]} h5 {[%emt 0:07:03]} 44. Kd4 {[%emt 0:03:19]} g6 {[%emt 0:02:48]} 45. R3c2 {[%emt 0:02:27]} Kg7 {[%emt 0:01:30]} 46. a4 {[%emt 0:04:59]} bxa4 {[%emt 0:01:14]} 47. Bxa6 {[%emt 0:01:38]} Rxa6 {[%emt 0:03:45]} 48. c6 {[%emt 0:00:51]} Kf6 {[%emt 0:03:56]} 49. Kd5 {[%emt 0:00:30]} Ra5+ {[%emt 0:02:12]} 50. Kd4 {[%emt 0:00:13]} Ke6 {[%emt 0:00:43]} 51. cxd7 {[%emt 0:01:11]} Rd8 {[%emt 0:00:11]} 52. Rc5 {[%emt 0:00:06]} Rxc5 {[%emt 0:00:59]} 53. Kxc5 {[%emt 0:00:02]} Rxd7 {[%emt 0:00:13]} 54. Ra1 {[%emt 0:00:43]} Rxd6 {[%emt 0:00:13]} 55. Rxa4 {[%emt 0:00:01]} Rd2 {[%emt 0:00:36]} 56. Ra6+ {[%emt 0:00:44]} Kf7 {[%emt 0:00:30]} 57. h4 {[%emt 0:00:00]} Rxg2 {[%emt 0:00:57]} 58. Kd4 {[%emt 0:00:06]} Rg4 {[%emt 0:00:49]} 59. Ke5 {[%emt 0:00:25]} e3 {[%emt 0:00:28]} 60. Ra7+ {[%emt 0:00:47]} Ke8 {[%emt 0:00:21]} 61. Kf6 {[%emt 0:01:08]} Re4 {[%emt 0:00:14]} 62. Ra8+ {[%emt 0:00:11]} Kd7 {[%emt 0:00:30]} 63. Ra7+ {[%emt 0:00:00]} Kc8 {[%emt 0:00:07]} 64. Ra8+ {[%emt 0:00:18]} Kb7 {[%emt 0:00:30]} 65. Ra1 {[%emt 0:00:30]} e2 {[%emt 0:00:00]} 66. Re1 {[%emt 0:00:00]} f4 {[%emt 0:00:00]} 67. Kxg6 {[%emt 0:00:13]} f3 {[%emt 0:00:00]} 68. Kf5 {[%emt 0:00:14]} Re8 {[%emt 0:00:00]} 0-1

[Event "TUR-chT Superleague 2018"]
[Site "Ankara"]
[Date "2018.08.01"]
[Round "8"]
[White "Keskin, Elif"]
[Black "Onur, Cigdem"]
[Result "0-1"]
[ECO "D05"]
[WhiteElo "1775"]
[BlackElo "1750"]
[Annotator "NA"]
[PlyCount "68"]
[EventDate "2018.07.25"]
[EventType "team-tourn"]
[EventCountry "TUR"]
[SourceTitle "playchess.com"]
[Source "ChessBase"]
[SourceQuality "1"]
[TimeControl "40/5400+30:1800+30"]

1. d4 d5 2. Nf3 Nf6 3. e3 e6 4. Bd3 c5 5. O-O Nc6 6. c3 Bd6 7. Nbd2 O-O 8. Qe2 e5 9. dxe5 Nxe5 10. Nxe5 Bxe5 11. Nf3 Bc7 12. h3 Re8 13. Qc2 Ne4 14. c4 Qd6 15. Rd1 Qg6 16. Kh1 Qh5 17. Bxe4 dxe4 18. Ng1 Be6 {[%emt 1:37:26]} 19. Qe2 {[%emt 1:20:21]} Qxe2 {[%emt 0:00:30]} 20. Nxe2 {[%emt 0:00:30]} Bxc4 {[%emt 0:00:30]} 21. Nc3 {[%emt 0:02:09]} Rad8 {[%emt 0:00:49]} 22. Bd2 {[%emt 0:01:05]} b6 {[%emt 0:00:56]} 23. Rac1 {[%emt 0:01:24]} Ba6 {[%emt 0:00:30]} 24. a4 {[%emt 0:01:23]} Be5 {[%emt 0:01:03]} 25. b3 {[%emt 0:01:18]} f5 {[%emt 0:00:10]} 26. g4 {[%emt 0:02:06]} fxg4 {[%emt 0:00:53]} 27. hxg4 {[%emt 0:00:09]} Bc8 {[%emt 0:00:00]} 28. Be1 {[%emt 0:04:36]} Bxg4 {[%emt 0:00:03]} 29. Rd2 {[%emt 0:02:24]} Bf3+ {[%emt 0:00:30]} 30. Kg1 {[%emt 0:00:00]} Rxd2 {[%emt 0:00:37]} 31. Bxd2 {[%emt 0:00:00]} Re6 {[%emt 0:00:24]} 32. Kf1 {[%emt 0:03:08]} Rh6 {[%emt 0:00:08]} 33. Ne2 {[%emt 0:00:18]} Rh1+ {[%emt 0:00:30]} 34. Ng1 {[%emt 0:00:30]} Bh2 {[%emt 0:00:30]} 0-1

[Event "TUR-chT Superleague 2018"]
[Site "Ankara"]
[Date "2018.08.02"]
[Round "9"]
[White "Yurtseven, Melih"]
[Black "Oksuz, Akin"]
[Result "0-1"]
[ECO "B07"]
[WhiteElo "2404"]
[BlackElo "2167"]
[Annotator "NA"]
[PlyCount "86"]
[EventDate "2018.07.25"]
[EventType "team-tourn"]
[EventCountry "TUR"]
[SourceTitle "playchess.com"]
[Source "ChessBase"]
[SourceQuality "1"]
[TimeControl "40/5400+30:1800+30"]

1. Nf3 {[%emt 0:00:30]} d6 {[%emt 0:00:30]} 2. d4 {[%emt 0:00:30]} g6 {[%emt 0:00:30]} 3. e4 {[%emt 0:00:00]} Nf6 {[%emt 0:00:30]} 4. Bd3 {[%emt 0:00:00]} Bg7 {[%emt 0:00:00] LiveBook: 524 Games} 5. O-O {[%emt 0:00:00]} O-O {[%emt 0:01:00]} 6. c3 {[%emt 0:00:00]} Nbd7 {[%emt 0:03:30]} 7. Be3 {[%emt 0:00:30] B07: Pirc Defence: Miscellaneous Systems} (7. Re1 e5 8. a4 Re8 9. Bg5 h6 10. Bh4 g5 11. Bg3 Nh5 12. Na3 Nxg3 13. hxg3 exd4 14. cxd4 Nf8 15. Nc2 a6 {1-0 (51) Grachev,B (2658)-Can,E (2589) Minsk 2017}) 7... e5 {[%emt 0:00:30]} 8. Nbd2 {[%emt 0:00:00]} b6 {[%emt 0:00:30]} 9. a4 {[%emt 0:00:00]} a6 $146 {[%emt 0:02:30]} ({Predecessor:} 9... a5 10. Re1 Bb7 11. Qc2 Re8 12. Rad1 h6 13. h3 Nh5 14. Bb5 c6 {½-½ (52) Sanal,V (2543)-Olcum,A (2257) Batumi 2018}) 10. Qb1 {[%emt 0:01:30]} Bb7 {[%emt 0:00:30]} 11. b4 {[%emt 0:00:00]} h6 {[%emt 0:07:30]} 12. h3 {[%emt 0:00:00]} Re8 {[%emt 0:03:30]} 13. d5 {[%emt 0:05:30]} Nh5 {[%emt 0:03:30]} 14. Rc1 {[%emt 0:00:30]} Nf4 {[%emt 0:12:30]} 15. Bf1 {[%emt 0:00:30]} f5 {[%emt 0:01:30]} 16. exf5 {[%emt 0:07:30]} (16. c4 $16) 16... Nxd5 {[%emt 0:04:30]} 17. Bc4 {[%emt 0:00:30]} gxf5 {[%emt 0:05:30]} 18. Qxf5 {[%emt 0:03:30]} Kh8 {[%emt 0:00:30]} 19. Bg5 {[%emt 0:03:30]} N7f6 {[%emt 0:11:30]} 20. Bh4 {[%emt 0:11:30]} Qc8 {[%emt 0:04:30]} 21. Qc2 {[%emt 0:06:30]} Nf4 {[%emt 0:00:30]} 22. Bg3 {[%emt 0:02:30]} N6h5 {[%emt 0:04:30]} 23. Nh4 {[%emt 0:04:30]} d5 {[%emt 0:00:30]} 24. Bf1 $17 {[%emt 0:00:30]} e4 {[%emt 0:00:00]} 25. Nb3 {[%emt 0:05:30]} Rg8 {[%emt 0:02:00]} 26. Nd4 {[%emt 0:14:30]} Be5 {[%emt 0:01:30]} 27. Bxf4 {[%emt 0:07:30]} Bxf4 {[%emt 0:06:30]} 28. Ndf5 {[%emt 0:00:30]} Rg5 {[%emt 0:02:30]} 29. g4 {[%emt 0:06:53]} Qe6 {[%emt 0:02:10]} 30. Bg2 {[%emt 0:02:13]} Bxc1 {[%emt 0:03:21]} 31. Qxc1 {[%emt 0:00:19]} Ng7 {[%emt 0:00:11]} 32. Qf4 {[%emt 0:03:59]} Nxf5 {[%emt 0:01:53]} 33. Nxf5 {[%emt 0:01:30]} Rag8 {[%emt 0:00:41]} 34. Qxc7 {[%emt 0:04:42]} Bc8 {[%emt 0:00:04]} 35. Rd1 {[%emt 0:05:06]} Rxf5 {[%emt 0:03:46]} 36. gxf5 {[%emt 0:00:30]} Qxf5 {[%emt 0:00:00]} 37. Re1 {[%emt 0:02:18]} Qf3 {[%emt 0:11:06]} 38. Qe5+ {[%emt 0:00:07]} Kh7 {[%emt 0:00:30]} 39. Qc7+ {[%emt 0:00:00]} Bd7 {[%emt 0:00:00]} 40. Qxd7+ {[%emt 0:00:00]} Kh8 {[%emt 0:00:00]} 41. Kf1 {[%emt 0:07:53]} Qxg2+ {[%emt 0:03:48]} 42. Ke2 {[%emt 0:00:30]} Qf3+ {[%emt 0:00:30]} 43. Kf1 {[%emt 0:00:00]} Rf8 {[%emt 0:00:30]} 0-1